fUST/lending_fUST_20240927
["ID","MTS","AMOUNT","RATE_DAILY","PERIOD"]
[339264769,1727421047071,-500.0,0.00019178,2]
[339264770,1727421047080,-509.662391,0.00019178,2]
[339264771,1727421047090,-500.0,0.00019178,2]
[339264772,1727421047099,-508.17203683,0.00019178,2]
[339264773,1727421047109,-509.662391,0.00019178,2]
[339264774,1727421047119,-164.992837,0.00019178,2]
[339264775,1727421047128,-195.688742,0.00019178,2]
[339264776,1727421047138,-2287.7169009,0.00019178,2]
[339264777,1727421047147,-445.4218728,0.00019178,4]
[339264778,1727421047158,-150.112233,0.000192,2]
[339264779,1727421047167,-150.112233,0.000192,2]
[339264780,1727421047177,-150.112233,0.000193,2]
[339264781,1727421047187,-238.582917,0.000193,2]
[339264782,1727421047196,-238.582917,0.000193,2]
[339264783,1727421047206,-150.112233,0.000193,2]
[339264784,1727421047215,-150.112233,0.000193,2]
[339264785,1727421047226,-150.112233,0.000193,2]
[339264786,1727421047235,-151.0,0.00019302,2]
[339264787,1727421047245,-672.922273,0.00019302,2]
[339264788,1727421047254,-228.638831,0.00019302,2]
[339264789,1727421047263,-151.0,0.00019302,2]
[339264790,1727421047273,-236.521968,0.00019302,2]
[339264791,1727421047282,-236.521968,0.00019302,2]
[339264792,1727421047291,-151.0,0.00019302,2]
[339264793,1727421047301,-238.255488,0.00019302,2]
[339264794,1727421047310,-238.255488,0.00019302,2]
[339264795,1727421047320,-171.525076,0.00019302,2]
[339264796,1727421047330,-534.182971,0.00019302,2]
[339264797,1727421047341,-534.182971,0.00019302,2]
[339264798,1727421047351,-254.4741,0.00019312,2]
[339264799,1727421047360,-210.011963,0.00019312,2]
[339264800,1727421047370,-151.0,0.00019312,2]
[339264801,1727421047379,-151.0,0.00019312,2]
[339264802,1727421047389,-331.608593,0.00019312,2]
[339264803,1727421047399,-194.543515,0.00019312,2]
[339264804,1727421047409,-194.543515,0.00019312,2]
[339264805,1727421047420,-151.0,0.00019312,2]
[339264806,1727421047430,-420.0,0.00019318,2]
[339264807,1727421047439,-526.0,0.00019335,2]
[339264808,1727421047449,-526.0,0.00019335,2]
[339264809,1727421047459,-526.0,0.00019335,2]
[339264810,1727421047469,-526.0,0.00019335,2]
[339264811,1727421047478,-526.0,0.00019335,2]
[339264812,1727421047488,-526.0,0.00019335,2]
[339264813,1727421047498,-526.0,0.00019335,2]
[339264814,1727421047508,-526.0,0.00019335,2]
[339264815,1727421047517,-526.0,0.00019335,2]
[339264816,1727421047527,-526.0,0.00019335,2]
[339264817,1727421047537,-526.0,0.00019335,2]
[339264818,1727421047547,-526.0,0.00019335,2]
[339264819,1727421047556,-526.0,0.00019335,2]
[339264820,1727421047566,-526.0,0.00019335,2]
[339264821,1727421047575,-153.0,0.00019335,2]
[339264822,1727421047585,-153.0,0.00019335,2]
[339264823,1727421047595,-153.0,0.00019335,2]
[339264824,1727421047605,-153.0,0.00019335,2]
[339264825,1727421047614,-526.0,0.00019338,2]
[339264826,1727421047624,-526.0,0.00019338,2]
[339264827,1727421047633,-526.0,0.00019338,2]
[339264828,1727421047643,-526.0,0.00019338,2]
[339264829,1727421047653,-526.0,0.00019338,2]
[339264830,1727421047663,-526.0,0.00019338,2]
[339264831,1727421047672,-526.0,0.00019338,2]
[339264832,1727421047682,-526.0,0.00019338,2]
[339264833,1727421047693,-526.0,0.00019338,2]
[339264834,1727421047702,-526.0,0.00019338,2]
[339264835,1727421047712,-526.0,0.00019338,2]
[339264836,1727421047721,-526.0,0.00019338,2]
[339264837,1727421047731,-526.0,0.00019338,2]
[339264838,1727421047741,-526.0,0.00019338,2]
[339264839,1727421047751,-153.0,0.00019338,2]
[339264840,1727421047761,-153.0,0.00019338,2]
[339264841,1727421047773,-153.0,0.00019338,2]
[339264842,1727421047783,-153.0,0.00019338,2]
[339264843,1727421047793,-526.0,0.0001934,2]
[339264844,1727421047804,-526.0,0.0001934,2]
[339264845,1727421047815,-526.0,0.0001934,2]
[339264846,1727421047825,-526.0,0.0001934,2]
[339264847,1727421047834,-526.0,0.0001934,2]
[339264848,1727421047844,-526.0,0.0001934,2]
[339264849,1727421047855,-526.0,0.0001934,2]
[339264850,1727421047866,-526.0,0.0001934,2]
[339264851,1727421047875,-526.0,0.0001934,2]
[339264852,1727421047885,-526.0,0.0001934,2]
[339264853,1727421047895,-526.0,0.0001934,2]
[339264854,1727421047904,-526.0,0.0001934,2]
[339264855,1727421047914,-526.0,0.0001934,2]
[339264856,1727421047923,-526.0,0.0001934,2]
[339264857,1727421047932,-153.0,0.0001934,2]
[339264858,1727421047942,-153.0,0.0001934,2]
[339264859,1727421047953,-153.0,0.0001934,2]
[339264860,1727421047962,-153.0,0.0001934,2]
[339264861,1727421047972,-526.0,0.00019342,2]
[339264862,1727421047982,-526.0,0.00019342,2]
[339264863,1727421047992,-526.0,0.00019342,2]
[339264864,1727421048001,-526.0,0.00019342,2]
[339264865,1727421048011,-526.0,0.00019342,2]
[339264866,1727421048021,-526.0,0.00019342,2]
[339264867,1727421048030,-526.0,0.00019342,2]
[339264868,1727421048040,-526.0,0.00019342,2]
[339264869,1727421048049,-526.0,0.00019342,2]
[339264870,1727421048058,-526.0,0.00019342,2]
[339264871,1727421048068,-526.0,0.00019342,2]
[339264872,1727421048077,-526.0,0.00019342,2]
[339264873,1727421048087,-526.0,0.00019342,2]
[339264874,1727421048096,-526.0,0.00019342,2]
[339264875,1727421048106,-153.0,0.00019342,2]
[339264876,1727421048115,-153.0,0.00019342,2]
[339264877,1727421048125,-153.0,0.00019342,2]
[339264878,1727421048134,-153.0,0.00019342,2]
[339264879,1727421048144,-151.0,0.00019352,2]
[339264880,1727421048154,-151.0,0.00019352,2]
[339264881,1727421048164,-238.582917,0.00019352,2]
[339264882,1727421048173,-238.582917,0.00019352,2]
[339264883,1727421048183,-150.112233,0.000194,2]
[339264884,1727421048193,-150.112233,0.000194,2]
[339264885,1727421048203,-182.313,0.000194,2]
[339264886,1727421048213,-407.058626,0.000194,2]
[339264887,1727421048222,-407.058626,0.000194,2]
[339264888,1727421048232,-1675.314435,0.000194,2]
[339264889,1727421048241,-1675.314435,0.000194,2]
[339264890,1727421048251,-225.242924,0.000194,2]
[339264891,1727421048260,-225.242924,0.000194,2]
[339264892,1727421048270,-151.0,0.000194,2]
[339264893,1727421048279,-151.0,0.00019442,2]
[339264894,1727421048289,-151.0,0.00019442,2]
[339264895,1727421048298,-331.608593,0.00019442,2]
[339264896,1727421048307,-1000.0,0.00019442,2]
[339264897,1727421048317,-1000.0,0.00019442,2]
[339264898,1727421048326,-1000.0,0.00019442,2]
[339264899,1727421048336,-1000.0,0.00019442,2]
[339264900,1727421048345,-1000.0,0.00019442,2]
[339264901,1727421048355,-1000.0,0.00019442,2]
[339264902,1727421048364,-1000.0,0.00019442,2]
[339264903,1727421048373,-1000.0,0.00019442,2]
[339264904,1727421048383,-1000.0,0.00019442,2]
[339264905,1727421048392,-1000.0,0.00019442,2]
[339264906,1727421048402,-1000.0,0.00019442,2]
[339264907,1727421048411,-1000.0,0.00019442,2]
[339264908,1727421048420,-1000.0,0.00019442,2]
[339264909,1727421048429,-1000.0,0.00019442,2]
[339264910,1727421048439,-1000.0,0.00019442,2]
[339264911,1727421048448,-1000.0,0.00019442,2]
[339264912,1727421048458,-1000.0,0.00019442,2]
[339264913,1727421048467,-1000.0,0.00019442,2]
[339264914,1727421048478,-1000.0,0.00019442,2]
[339264915,1727421048488,-886.8164385,0.00019442,2]
[339264916,1727421048498,-194.543515,0.00019442,2]
[339264917,1727421048608,-194.543515,0.00019442,2]
[339264918,1727421048618,-151.0,0.00019442,2]
[339264919,1727421048627,-554.607936,0.00019442,2]
[339264920,1727421048638,-554.607936,0.00019442,2]
[339264921,1727421048648,-212.306581,0.00019442,2]
[339264922,1727421048657,-212.306581,0.00019442,2]
[339264923,1727421048668,-275.694663,0.00019442,2]
[339264924,1727421048677,-275.694663,0.00019442,2]
[339264925,1727421048686,-311.584747,0.00019442,2]
[339264926,1727421048696,-311.584747,0.00019442,2]
[339264927,1727421048705,-435.00958,0.00019442,2]
[339264928,1727421048714,-435.00958,0.00019442,2]
[339264929,1727421048724,-465.51288594,0.00019448,2]
[339264930,1727421048733,-154.047577,0.00019452,2]
[339264931,1727421048742,-238.582917,0.00019452,2]
[339264932,1727421048751,-238.582917,0.00019452,2]
[339264933,1727421048760,-505.58776362,0.00019452,2]
[339264934,1727421048772,-520.48870808,0.00019452,2]
[339264935,1727421048782,-500.0,0.00019452,2]
[339264936,1727421048791,-500.0,0.00019452,2]
[339264937,1727421048800,-500.0,0.00019452,2]
[339264938,1727421048809,-511.67284037,0.00019452,2]
[339264939,1727421048819,-500.0,0.00019452,2]
[339264940,1727421048828,-500.0,0.00019452,2]
[339264941,1727421048837,-594.11,0.00019452,2]
[339264942,1727421048846,-500.0,0.00019452,2]
[339264943,1727421048859,-500.0,0.00019452,2]
[339264944,1727421048868,-1205.84,0.00019452,2]
[339264945,1727421048878,-1440.54,0.00019452,2]
[339264946,1727421048887,-500.0,0.00019452,2]
[339264947,1727421048896,-645.0,0.00019452,2]
[339264948,1727421048906,-325.31,0.00019452,2]
[339264949,1727421048916,-534.81,0.00019452,2]
[339264950,1727421048926,-491.48,0.00019452,2]
[339264951,1727421048935,-500.0,0.00019452,2]
[339264952,1727421048945,-1233.51,0.00019452,2]
[339264953,1727421048954,-500.29800051,0.00019452,2]
[339264954,1727421048964,-500.0,0.00019452,2]
[339264955,1727421048974,-500.0,0.00019452,2]
[339264956,1727421048983,-185.3,0.00019452,2]
[339264957,1727421048993,-508.7841733,0.00019452,2]
[339264958,1727421049002,-639.05364127,0.00019452,2]
[339264959,1727421049012,-500.0,0.00019452,2]
[339264960,1727421049022,-439.57472982,0.00019452,2]
[339264961,1727421049031,-500.0,0.00019452,2]
[339264962,1727421049041,-500.0,0.00019452,2]
[339264963,1727421049051,-500.0,0.00019452,2]
[339264964,1727421049060,-214.5,0.00019452,2]
[339264965,1727421049070,-500.0,0.00019452,2]
[339264966,1727421049079,-500.0,0.00019452,2]
[339264967,1727421049089,-397.29062271,0.00019452,2]
[339264968,1727421049098,-194.33136475,0.00019452,2]
[339264969,1727421049107,-377.7251503,0.00019452,2]
[339264970,1727421049116,-1000.0,0.00019452,2]
[339264971,1727421049126,-500.0,0.00019452,2]
[339264972,1727421049135,-500.0,0.00019452,2]
[339264973,1727421049145,-344.71093875,0.00019452,2]
[339264974,1727421049155,-500.0,0.00019452,2]
[339264975,1727421049166,-500.0,0.00019452,2]
[339264976,1727421049180,-510.47063791,0.00019452,2]
[339264977,1727421049190,-151.0,0.00019452,2]
[339264978,1727421049200,-500.0,0.00019452,2]
[339264979,1727421049210,-220.63047378,0.00019452,2]
[339264980,1727421049220,-500.0,0.00019452,2]
[339264981,1727421049230,-500.0,0.00019452,2]
[339264982,1727421049240,-500.0,0.00019452,2]
[339264983,1727421049250,-500.0,0.00019452,2]
[339264984,1727421049260,-184.26401138,0.00019452,2]
[339264985,1727421049270,-533.29018558,0.00019452,2]
[339264986,1727421049280,-500.0,0.00019452,2]
[339264987,1727421049290,-368.64450648,0.00019452,2]
[339264988,1727421049300,-509.06102621,0.00019452,2]
[339264989,1727421049310,-500.0,0.00019452,2]
[339264990,1727421049320,-182.36,0.00019452,2]
[339264991,1727421049329,-2332.75,0.00019452,2]
[339264992,1727421049339,-500.0,0.00019452,2]
[339264993,1727421049349,-500.0,0.00019452,2]
[339264994,1727421049359,-500.0,0.00019452,2]
[339264995,1727421049368,-509.92699727,0.00019452,2]
[339264996,1727421049377,-199.72,0.00019452,2]
[339264997,1727421049387,-500.0,0.00019452,2]
[339264998,1727421049397,-475.61037516,0.00019452,2]
[339264999,1727421049406,-13.80457074,0.00019452,2]
[339265000,1727421049551,-400.0,0.00019452,2]
[339265001,1727421051006,-177.86813188,0.00019178,2]
[339265002,1727421051115,-509.662391,0.00019178,2]
[339265003,1727421051125,-509.662391,0.00019178,2]
[339265004,1727421051135,-66.31542926,0.00019452,2]
[339265005,1727421051144,-500.0,0.00019452,2]
[339265006,1727421051153,-338.33844084,0.00019452,2]
[339265007,1727421051163,-365.66,0.00019452,2]
[339265008,1727421051174,-672.922273,0.00019452,2]
[339265009,1727421051183,-500.0,0.00019452,2]
[339265010,1727421051193,-672.922273,0.00019452,2]
[339265011,1727421051203,-500.0,0.00019452,2]
[339265012,1727421051213,-207.38,0.00019452,2]
[339265013,1727421051222,-503.39237662,0.00019452,2]
[339265014,1727421051232,-503.28609664,0.00019452,2]
[339265015,1727421051241,-500.0,0.00019452,2]
[339265016,1727421051251,-500.0,0.00019452,2]
[339265017,1727421051260,-500.0,0.00019452,2]
[339265018,1727421051270,-508.5614065,0.00019452,2]
[339265019,1727421051279,-165.55820456,0.00019452,2]
[339265020,1727421051287,-500.0,0.00019452,2]
[339265021,1727421051297,-324.74761917,0.00019452,2]
[339265022,1727421051306,-151.0,0.00019452,2]
[339265023,1727421051315,-151.0,0.00019452,2]
[339265024,1727421051323,-502.41245971,0.00019452,2]
[339265025,1727421051332,-236.521968,0.00019452,2]
[339265026,1727421051341,-236.521968,0.00019452,2]
[339265027,1727421051351,-1724.24,0.00019452,2]
[339265028,1727421051360,-236.521968,0.00019452,2]
[339265029,1727421051369,-236.521968,0.00019452,2]
[339265030,1727421051379,-151.0,0.00019452,2]
[339265031,1727421051388,-152.777939,0.00019452,2]
[339265032,1727421051397,-500.0,0.00019452,2]
[339265033,1727421051406,-563.66,0.00019452,2]
[339265034,1727421051416,-501.95348336,0.00019452,2]
[339265035,1727421051426,-500.0,0.00019452,2]
[339265036,1727421051435,-573.12460629,0.00019452,2]
[339265037,1727421051444,-500.0,0.00019452,2]
[339265038,1727421051453,-505.93780842,0.00019452,2]
[339265039,1727421051463,-500.0,0.00019452,2]
[339265040,1727421051473,-505.36571462,0.00019452,2]
[339265041,1727421051483,-500.0,0.00019452,2]
[339265042,1727421051492,-504.57965744,0.00019452,2]
[339265043,1727421051502,-500.0,0.00019452,2]
[339265044,1727421051511,-500.0,0.00019452,2]
[339265045,1727421051520,-500.0,0.00019452,2]
[339265046,1727421051530,-504.49232934,0.00019452,2]
[339265047,1727421051539,-507.06799995,0.00019452,2]
[339265048,1727421051549,-238.255488,0.00019452,2]
[339265049,1727421051559,-238.255488,0.00019452,2]
[339265050,1727421051568,-238.255488,0.00019452,2]
[339265051,1727421051578,-238.255488,0.00019452,2]
[339265052,1727421051587,-500.0,0.00019452,2]
[339265053,1727421051598,-500.0,0.00019452,2]
[339265054,1727421051607,-166.15338914,0.00019452,2]
[339265055,1727421051617,-500.0,0.00019452,2]
[339265056,1727421051627,-497.67729194,0.00019452,2]
[339265057,1727421051637,-407.058626,0.00019452,2]
[339265058,1727421051647,-407.058626,0.00019452,2]
[339265059,1727421051657,-587.70928919,0.00019452,2]
[339265060,1727421051666,-1675.314435,0.00019452,2]
[339265061,1727421051676,-554.607936,0.00019452,2]
[339265062,1727421051686,-397.52466371,0.00019452,2]
[339265063,1727421051695,-1675.314435,0.00019452,2]
[339265064,1727421051704,-225.242924,0.00019452,2]
[339265065,1727421051714,-554.607942,0.00019452,2]
[339265066,1727421051723,-276.77,0.00019452,2]
[339265067,1727421051732,-225.242924,0.00019452,2]
[339265068,1727421051742,-239.0409554,0.00019452,2]
[339265069,1727421051751,-500.51837239,0.00019452,2]
[339265070,1727421051760,-212.306581,0.00019452,2]
[339265071,1727421051770,-212.306577,0.00019452,2]
[339265072,1727421051782,-291.95922834,0.00019452,2]
[339265073,1727421051792,-500.0,0.00019452,2]
[339265074,1727421051801,-622.2783346,0.00019452,2]
[339265075,1727421051810,-172.12555153,0.00019452,2]
[339265076,1727421051820,-500.0,0.00019452,2]
[339265077,1727421051830,-151.0,0.00019452,2]
[339265078,1727421051839,-500.0,0.00019452,2]
[339265079,1727421051851,-500.0,0.00019452,2]
[339265080,1727421051861,-508.78771254,0.00019452,2]
[339265081,1727421051870,-484.41885902,0.00019452,2]
[339265082,1727421051879,-500.0,0.00019452,2]
[339265083,1727421051888,-500.0,0.00019452,2]
[339265084,1727421051898,-636.56,0.00019452,2]
[339265085,1727421051908,-558.74,0.00019452,2]
[339265086,1727421051917,-510.57907973,0.00019452,2]
[339265087,1727421051926,-504.3754481,0.00019452,2]
[339265088,1727421051936,-534.182971,0.00019452,2]
[339265089,1727421051945,-534.182971,0.00019452,2]
[339265090,1727421051954,-534.182971,0.00019452,2]
[339265091,1727421051964,-534.182971,0.00019452,2]
[339265092,1727421051973,-275.694663,0.00019452,2]
[339265093,1727421051982,-544.43647367,0.00019452,2]
[339265094,1727421051993,-275.694669,0.00019452,2]
[339265095,1727421052002,-542.23158736,0.00019452,2]
[339265096,1727421052012,-502.12015709,0.00019452,2]
[339265097,1727421052022,-500.0,0.00019452,2]
[339265098,1727421052031,-520.02277408,0.00019452,2]
[339265099,1727421052040,-507.22033891,0.00019452,2]
[339265100,1727421052050,-500.0,0.00019452,2]
[339265101,1727421052059,-505.8978561,0.00019452,2]
[339265102,1727421052069,-512.27629729,0.00019452,2]
[339265103,1727421052078,-500.0,0.00019452,2]
[339265104,1727421052087,-311.584747,0.00019452,2]
[339265105,1727421052097,-311.584747,0.00019452,2]
[339265106,1727421052107,-500.0,0.00019452,2]
[339265107,1727421052116,-513.21772401,0.00019452,2]
[339265108,1727421052126,-152.01320935,0.00019452,2]
[339265109,1727421052135,-516.01800245,0.00019452,2]
[339265110,1727421052144,-500.0,0.00019452,2]
[339265111,1727421052153,-507.91041414,0.00019452,2]
[339265112,1727421052162,-500.0,0.00019452,2]
[339265113,1727421052179,-602.9348333,0.00019452,2]
[339265114,1727421052190,-464.6610779,0.00019452,2]
[339265115,1727421052199,-500.0,0.00019452,2]
[339265116,1727421052208,-506.75607573,0.00019452,2]
[339265117,1727421052218,-334.68402116,0.00019452,2]
[339265118,1727421052227,-500.0,0.00019452,2]
[339265119,1727421052236,-500.0,0.00019452,2]
[339265120,1727421052246,-500.0,0.00019452,2]
[339265121,1727421052255,-500.0,0.00019452,2]
[339265122,1727421052264,-500.0,0.00019452,2]
[339265123,1727421052273,-501.03131705,0.00019452,2]
[339265124,1727421052283,-500.0,0.00019452,2]
[339265125,1727421052292,-500.0,0.00019452,2]
[339265126,1727421052301,-589.14910012,0.00019452,2]
[339265127,1727421052310,-298.04290494,0.00019452,2]
[339265128,1727421052320,-435.00958,0.00019452,2]
[339265129,1727421052329,-500.0,0.00019452,2]
[339265130,1727421052338,-500.0,0.00019452,2]
[339265131,1727421052347,-627.64855478,0.00019452,2]
[339265132,1727421052356,-435.00958,0.00019452,2]
[339265133,1727421052366,-506.2286542,0.00019452,2]
[339265134,1727421052375,-273.39431139,0.00019452,2]
[339265135,1727421052385,-613.62617819,0.00019452,2]
[339265136,1727421052394,-500.0,0.00019452,2]
[339265137,1727421052404,-500.0,0.00019452,2]
[339265138,1727421052413,-500.0,0.00019452,2]
[339265139,1727421052425,-500.0,0.00019452,2]
[339265140,1727421052434,-500.0,0.00019452,2]
[339265141,1727421052444,-527.97721592,0.00019452,2]
[339265142,1727421052454,-500.0,0.00019452,2]
[339265143,1727421052463,-2096.99,0.00019452,2]
[339265144,1727421052472,-500.0,0.00019452,2]
[339265145,1727421052482,-500.0,0.00019452,2]
[339265146,1727421052491,-500.0,0.00019452,2]
[339265147,1727421052500,-501.83280177,0.00019452,2]
[339265148,1727421052510,-500.0,0.00019452,2]
[339265149,1727421052519,-509.91996726,0.00019452,2]
[339265150,1727421052529,-500.0,0.00019452,2]
[339265151,1727421052538,-525.59760991,0.00019452,2]
[339265152,1727421052548,-500.0,0.00019452,2]
[339265153,1727421052557,-566.83856903,0.00019452,2]
[339265154,1727421052566,-330.739292,0.00019452,2]
[339265155,1727421052576,-330.739292,0.00019452,2]
[339265156,1727421052586,-500.0,0.00019452,2]
[339265157,1727421052596,-598.64,0.00019452,2]
[339265158,1727421052606,-504.92250013,0.00019452,2]
[339265159,1727421052616,-572.84954911,0.00019452,2]
[339265160,1727421052625,-330.739292,0.00019452,2]
[339265161,1727421052635,-330.739292,0.00019452,2]
[339265162,1727421052644,-500.0,0.00019452,2]
[339265163,1727421052654,-5000.0,0.00019452,2]
[339265164,1727421052663,-539.96476912,0.00019452,2]
[339265165,1727421052673,-500.0,0.00019452,2]
[339265166,1727421052683,-500.0,0.00019452,2]
[339265167,1727421052692,-500.0,0.00019452,2]
[339265168,1727421052701,-500.0,0.00019452,2]
[339265169,1727421052710,-500.0,0.00019452,2]
[339265170,1727421052720,-167.739511,0.00019452,2]
[339265171,1727421052730,-167.739511,0.00019452,2]
[339265172,1727421052739,-167.739511,0.00019452,2]
[339265173,1727421052749,-167.739511,0.00019452,2]
[339265174,1727421052758,-159.39009977,0.00019452,2]
[339265175,1727421052769,-263.9944114,0.00019452,2]
[339265176,1727421052782,-19919.37,0.00019452,2]
[339265177,1727421052792,-297.937136,0.00019452,2]
[339265178,1727421052801,-500.0,0.00019452,2]
[339265179,1727421052810,-597.41,0.00019452,2]
[339265180,1727421052821,-500.0,0.00019452,2]
[339265181,1727421052830,-3649.69,0.00019452,2]
[339265182,1727421052840,-513.58334214,0.00019452,2]
[339265183,1727421052851,-746.72,0.00019452,2]
[339265184,1727421052860,-500.0,0.00019452,2]
[339265185,1727421052870,-500.0,0.00019452,2]
[339265186,1727421052879,-509.662391,0.00019452,2]
[339265187,1727421052888,-509.662391,0.00019452,2]
[339265188,1727421052897,-509.662391,0.00019452,2]
[339265189,1727421052906,-509.662391,0.00019452,2]
[339265190,1727421052916,-151.0,0.00019455,2]
[339265191,1727421052926,-151.0,0.00019455,2]
[339265192,1727421052936,-151.0,0.00019455,2]
[339265193,1727421052945,-151.0,0.00019455,2]
[339265194,1727421052954,-151.0,0.00019455,2]
[339265195,1727421052963,-331.608593,0.00019455,2]
[339265196,1727421052972,-331.608593,0.00019455,2]
[339265197,1727421052983,-194.543515,0.00019455,2]
[339265198,1727421052991,-194.543515,0.00019455,2]
[339265199,1727421053000,-151.0,0.00019455,2]
[339265200,1727421053010,-151.0,0.00019461,2]
[339265201,1727421053019,-500.0,0.00019473,2]
[339265202,1727421053029,-500.0,0.00019473,2]
[339265203,1727421053038,-500.93983829,0.00019473,2]
[339265204,1727421053048,-500.0,0.00019473,2]
[339265205,1727421053057,-500.0,0.00019473,2]
[339265206,1727421053066,-174.53906605,0.00019473,2]
[339265207,1727421053075,-507.48995978,0.00019473,2]
[339265208,1727421053084,-537.79400279,0.00019473,2]
[339265209,1727421053094,-500.0,0.00019473,2]
[339265210,1727421053103,-500.0,0.00019473,2]
[339265211,1727421053112,-500.0,0.00019473,2]
[339265212,1727421053122,-330.739292,0.00019478,2]
[339265213,1727421053131,-330.73928461,0.00019478,2]
[339265214,1727421053140,-167.739511,0.00019478,2]
[339265215,1727421053150,-167.739508,0.00019478,2]
[339265216,1727421053159,-509.662391,0.00019478,2]
[339265217,1727421053169,-151.0,0.000195,2]
[339265218,1727421053178,-151.0,0.00019509,2]
[339265219,1727421053187,-151.0,0.00019509,2]
[339265220,1727421053196,-238.582917,0.00019516,2]
[339265221,1727421053207,-238.582917,0.00019516,2]
[339265222,1727421053217,-1000.0,0.00019604,2]
[339265223,1727421053226,-240.0,0.0001969,2]
[339265224,1727421053236,-150.112233,0.000197,2]
[339265225,1727421053245,-151.0,0.00019716,2]
[339265226,1727421053254,-151.0,0.00019716,2]
[339265227,1727421053263,-331.608593,0.00019716,2]
[339265228,1727421053273,-331.608593,0.00019716,2]
[339265229,1727421053282,-194.543515,0.00019716,2]
[339265230,1727421053293,-194.543515,0.00019716,2]
[339265231,1727421053302,-151.0,0.00019716,2]
[339265232,1727421053312,-407.058626,0.00019716,2]
[339265233,1727421053322,-407.05862924,0.00019716,2]
[339265234,1727421053332,-1675.314435,0.00019716,2]
[339265235,1727421053341,-1675.314444,0.00019716,2]
[339265236,1727421053351,-225.242924,0.00019716,2]
[339265237,1727421053361,-225.242923,0.00019716,2]
[339265238,1727421053370,-151.0,0.00019716,2]
[339265239,1727421053469,-238.582917,0.00019726,2]
[339265240,1727421053479,-238.582917,0.00019726,2]
[339265241,1727421053488,-151.0,0.00019726,2]
[339265242,1727421053497,-310.0,0.00019726,2]
[339265243,1727421053506,-310.0,0.00019726,2]
[339265244,1727421053515,-183.580593,0.00019726,2]
[339265245,1727421053524,-151.0,0.00019726,2]
[339265246,1727421053533,-151.0,0.00019726,2]
[339265247,1727421053542,-151.0,0.00019726,2]
[339265248,1727421053551,-151.0,0.00019726,2]
[339265249,1727421053561,-500.0,0.00019726,2]
[339265250,1727421053571,-500.0,0.00019726,2]
[339265251,1727421053580,-500.0,0.00019726,2]
[339265252,1727421053590,-594.11,0.00019726,2]
[339265253,1727421053599,-525.0,0.00019726,2]
[339265254,1727421053608,-500.0,0.00019726,2]
[339265255,1727421053617,-1205.84,0.00019726,2]
[339265256,1727421053626,-1440.54,0.00019726,2]
[339265257,1727421053635,-404.22807079,0.00019726,2]
[339265258,1727421053645,-645.0,0.00019726,2]
[339265259,1727421053654,-393.43244945,0.00019726,2]
[339265260,1727421053663,-1233.51,0.00019726,2]
[339265261,1727421053674,-500.0,0.00019726,2]
[339265262,1727421053683,-500.0,0.00019726,2]
[339265263,1727421053692,-584.6103284,0.00019726,2]
[339265264,1727421053701,-500.0,0.00019726,2]
[339265265,1727421053711,-1000.0,0.00019726,2]
[339265266,1727421053719,-579.09297161,0.00019726,2]
[339265267,1727421053729,-500.0,0.00019726,2]
[339265268,1727421053738,-500.0,0.00019726,2]